Workbook

Sheet F.1 ESTUDIO VERIFICACION (hidden)
D2: ESTUDIO DE VERIFICACIÓN DE REQUISITOS PARA OTORGAMIENTO DE ENCARGOS | K2: Código: FO-GH-041
D4: PROCESO DE GESTION DEL TALENTO HUMANO | K4: Versión: 2
B6: Elaboró: Técnico Administrativo | E6: Revisó: Director de Gestión Humana | K6: Aprobó: Comité MECI– Calidad Alcalde
B8: IDENTIFICACION DEL EMPLEO: | D8: CARGO: | F8: CÓDIGO: | G8: GRADO: | H8: FICHA: | I8: VACANTE TEMPORAL: | K8: VACANTE DEFINITIVA:
B9: DEPENDENCIA
B10: ASIGNACIÓN BÁSICA
B11: FECHA DE PUBLICACION
B12: PROPOSITO DEL EMPLEO
B13: REQUISITOS DEL CARGO | F13: NÚCLEO BÁSICO DEL CONOCIMIENTO:
F14: REQUISITOS DE EXPERIENCIA:
B15: EQUIVALENCIA:
B16: No. | C16: FUNCIONARIO | D16: CARGO DE CARRERA | E16: PERFIL DE COMPETENCIAS | H16: APTITUDES Y HABILIDADES | I16: SANCION DISCIPLINARIA | K16: NIVEL ALCANZADO EN LA EVALUACION DEL DESEMPEÑO LABORAL
C19: Verificada la Planta de Personal de la Alcaldía Municipal de Fusagasugá, y en aplicación de la oferta, los presupuestos y los criterios de desempate establecidos en la norma, se establece que quien cumple con el pleno de los requisitos y obtiene la más alta calificación, es el (la) funcionario (a) XXXXXXXXXXXXXXXXXXX C.C. No.XXXXXXXXXX (Texto según estudio realizado)
C20: El procedimiento aquí definido se realiza para garantizar la transparencia en el proceso de selección de funcionarios de Carrera Administrativa y en cumplimiento de normas vigentes: Ley 909 de 2004, Decreto 1082/2015, Decreto 648 de 2017, Circular 20191000000117 de 2019, Ley 1960 de 2019, entre otras.
C21: Nota: El funcionario de Carrera Administrativa que crea cumplir con el pleno de los requisitos y desee acceder al empleo en estudio, deberá solicitarlo en el término de cinco (5) días a partir de la fecha de publicación, a través del correo areatecnicarh@fusagasuga-cundinamarca.gov.co, para la respectiva verificación, la cual se efectuará, sobre los documentos que reposen en su historia laboral.
B22: ALCALDE | D22: SECRETARIA ADMINISTRATIVA | G22: DIRECTOR DE GESTION HUMANA | I22: PROFESIONAL ESPECIALIZADO | J22: PROFESIONAL UNIVERSITARIO

Sheet para nueva versión
D3: OFERTA DE EMPLEOS PARA SER PROVISTOS MEDIANTE ENCARGO | L3: CODIGO: FO-GTH-043
L4: Versión: 3
D5: PROCESO DE GESTION DEL TALENTO HUMANO | L5: Fecha de aprobación: 22 de diciembre de 2021
B6: Elaboró: Técnico Administrativo de la Dirección de Gestión Humana | D6: Revisó: Director de Gestión Humana | L6: Aprobó: Comité Técnico de Calidad
B9: FECHA:
B10: IDENTIFICACION DEL EMPLEO | D10: CARGO: | E10: CÓDIGO: | F10: GRADO: | G10: FICHA: | I10: VACANTE TEMPORAL: | M10: VACANTE DEFINITIVA:
B11: DEPENDENCIA
B12: ASIGNACIÓN BÁSICA
B13: PROPOSITO PRINCIPAL
B14: REQUISITOS DEL CARGO | D14: NÚCLEO BÁSICO DEL CONOCIMIENTO:
D15: EXPERIENCIA:
D16: EQUIVALENCIA N/A
B17: No. | C17: NOMBRE DE EMPLEADO DE CARRERA | D17: EMPLEO DE CARRERA DEL CUAL ES TITULAR | E17: PERFIL DE COMPETENCIA | G17: SANCION DISCIPLINARIA | H17: NIVEL DE LA EVALUACION DEL DESEMPEÑO LABORAL | J17: DECISIÓN TOMADA POR EL FUNCIONARIO EN LA OFERTA PRESENTADA | M17: OBSERVACION | N17: FIRMA
J18: ACEPTA | K18: NO ACEPTA
C21: Nota: Para dar a conocer la oferta del empleo objeto de estudio, la Dirección de Gestión Humana, hará la invitación a los trabajadores escalafonados, a través de los correos institucionales de los mismos, quienes deberán manifestar la decisión por escrito al correo areatecnicarh@fusagasuga-cundinamarca.gov.co, o también podrán ser citados a reunión extraordinaria en la Dirección, dejando en todo caso, el registro de su decisión en formato FO-GH-043 y contará para ello, con dos (2) días hábiles para manifestar su decisión. Si más de un funcionario aceptan la invitación y su decisión es positiva para encargo, se continuará con el estudio de presupuestos o criterios de desempate, según el caso.
B22: SECRETARIA ADMINISTRATIVA | E22: DIRECTOR GESTIÓN HUMANA | J22: PROFESIONAL ESPECIALIZADO | M22: PROFESIONAL UNIVERSITARIO

Sheet F.3 PRESUPUESTOS (hidden)
F3: PRESUPUESTOS PARA QUE PROCEDA EL DERECHO PREFERENCIAL DE ENCARGO DE SERVIDOR DE CARRERA (Formato de trabajo Interno) | U3: Código: FO-GH
F4: PROCESO DE GESTIÓN DEL TALENTO HUMANO. | U4: versión 1
B5: Elaboración técnica: Técnico Administrativo | F5: Revisó: | U5: Aprobó: Comité MECI–CALIDAD Alcalde
B7: La Administracion Municipal, en cumplimiento de la Ley 1960 de 2019 y el criterio unificado expedido por la Comision Nacional del Servicio Civil, presenta el siguiente estudio de presupuestos para proceder por el derecho preferencial de servidores de carrera administrativa
B8: FECHA:
B9: IDENTIFICACION DEL EMPLEO: | E9: CARGO: | K9: CÓDIGO: | M9: GRADO: | O9: FICHA: | Q9: VACANTE TEMPORAL: | T9: VACANTE DEFINITIVA:
B10: DEPENDENCIA:
B12: PROPOSITO PRINCIPAL DEL EMPLE0
B13: REQUISITOS DEL EMPLEO | C13: NÚCLEO BASICO DEL CONOCIMIENTO
C14: REQUISITOS DE EXPERIENCIA
C15: EQUIVALENCIA
B16: NORMATIVIDAD | E16: Ley 909 de 2004, Decreto 1082 de 2015, Decreto 648 de 2017, Circular 20191000000117 del 29/07/2019, Ley 1960/2019 y Critério unificado CNSC
B17: POSTULACIÓN SERVIDOR PÚBLICO CON DERECHOS DE CARRERA | F17: 0.25 | M17: 0.25 | Q17: 0.25 | U17: 0.25 | X17: CONSOLIDACIÓN
F18: ESTUDIOS (Según exigencia del Manual de Funciones y de Competencias Laborales, del empleo objeto de estudio) | J18: Acreditación de educación formal y relacionada y adicional al requisito mínimo exigido para el cargo, la cual deberá estar vigente en su historia laboral (Se asignará puntaje por cada titulo obtenido en el nivel académico) | L18: Peso porcentual | M18: EXPERIENCIA (Evaluada de acuerdo a la exigencia del Manual de funciones y Competencias Laborales, del empleo objeto de estudio) | N18: Mayor experiencia relacionada, de acuerdo al Manual de Funciones. | P18: Peso porcentual | Q18: Identificación de aptitudes y habilidades de acuerdo a las competencias funcionales y comportamentales del Manual de Funciones (Nivel de desarrollo obtenido en los compromisos comportamentales de la EDL & Manual de funciones del empleo en estudio) | T18: SANCIONES DISCIPLINARIAS | U18: RESULTADO DE LA EVALUACIÓN DEL DESEMPEÑO LABORAL | W18: (Resultado de la EDL*25)/100 | X18: PUNTAJE TOTAL (Sumatoria de resultados de los presupuestos evaluados)
J19: No. de títulos adicionales | K19: Puntaje | L19: 25 | N19: Tiempo (meses) | O19: Puntaje | P19: 25
B20: NOMBRE Y APELLIDOS | C20: CARGO DE CARRERA | J20: Bachiller | K20: 4 | L20: =K20*L19/100 -> 1 | N20: De uno (1) a dieciocho (18) meses | O20: 10 | P20: =O20*P19/100 -> 2.5 | R20: 25
J21: Técnico | K21: 8 | L21: =K21*L19/100 -> 2 | Q21: Tabla de valoración de evidencias (Nivel desarrollo compromisos comportamentales) | R21: 1er. Evaluación parcial | S21: 2da. Evaluación parcial
J22: Tecnólogo o Especialización Técnica | K22: 13 | L22: =K22*L19/100 -> 3.25 | N22: De diecinueve (19) a treinta y seis (36) meses | O22: 20 | P22: =O22*P19/100 -> 5 | Q22: Competencia comportamental 1 | R22: 2.5 | S22: 2.5
J23: Profesional o Especialización Tecnológica | K23: 15 | L23: =K23*L19/100 -> 3.75 | Q23: Competencia comportamental 2 | R23: 5 | S23: 5
J24: Especialización | K24: 17 | L24: =K24*L19/100 -> 4.25 | N24: De treinta y siete (37) a cincuenta y cuatro (54) meses | O24: 30 | P24: =O24*P19/100 -> 7.5 | Q24: Competencia comportamental 3 | R24: 7.5 | S24: 7.5
J25: Maestría | K25: 21 | L25: =K25*L19/100 -> 5.25 | Q25: Competencia comportamental 4 | R25: 10 | S25: 10
J26: Doctorado | K26: 22 | L26: =K26*L19/100 -> 5.5 | N26: De cincuenta y cinco (55) meses, en adelante | O26: 40 | P26: =O26*P19/100 -> 10 | Q26: Competencia comportamental 5 | R26: 12.5 | S26: 12.5
K27: =SUM(K20:K26) -> 100 | L27: =SUM(L20:L26) -> 25 | O27: =SUM(O20:O26) -> 100 | P27: =SUM(P20:P26) -> 25 | Q27: No. De competencias | U27: 100 | W27: 25
B28: Ejercicio | F28: Especialización en Derecho Laboral | L28: 4.3 | M28: 80 meses, 3 días | P28: 10 | Q28: Competencias laborales según EDL | R28: 20 | T28: No registra | U28: 95 | W28: =(W27*U28)/100 -> 23.75 | X28: =(L28+P28+R28+W28) -> 58.05
B30: RESULTADO DEL PRESENTE ESTUDIO:
B31: El estudio de los presupuestos requerido para la provisión transitoria de los empleos de carrera administrativa, se realiza en el marco de los principios de igualdad, transparencia, publicidad y confiabilidad, y su provisión se realiza por la absoluta necesidad del servicio ha discrecionalidad del Representante de la Entidad, mediante la figura de encargo o nombramiento provisional, cuando no exista servidor de carrera con derecho.
B32: ALCALDE | E32: SECRETARIA ADMINISTRATIVA | M32: DIRECTOR DE GESTIÓN HUMANA | Q32: PROFESIONAL ESPECIALIZADO | U32: PROFESIONAL UNIVERSITARIO
F39: ,

Sheet F.4 CRITERIOS DE DESEMPATE (hidden)
H2: CRITERIOS DE DESEMPATE PARA LA PROVISIÓN DE EMPLEO DE CARRERA MEDIANTE LA FIGURA DE ENCARGO | AA2: Código: FO-GH
H3: PROCESO DE GESTIÓN DEL TALENTO HUMANO | AA3: versión 1
B4: Elaboración técnica: Técnico Administrativo | H4: Revisó: | AA4: Aprobó: Comité MECI–CALIDAD Alcalde
B6: La Administración Municipal, en cumplimiento de la Ley 1960 de 2019 y Criterio Unificado expedido por la Comisión Nacional del Servicio Civil, efectúa el presente estudio, para decidir sobre el servidor público que obtenga la más alta calificación y ser encargado por derecho preferente.
B7: FECHA:
B8: IDENTIFICACION DEL EMPLEO: | H8: CARGO: | L8: CÓDIGO: | P8: GRADO : | T8: FICHA: | Y8: VACANTE DEFINITIVA: | AD8: VACANTE DEFINITIVA:
B9: DEPENDENCIA:
B11: PROPÓSITO PRINCIPAL DEL EMPLEO
B12: REQUISITOS DEL EMPLEO | C12: NÚCLEO BASICO DEL CONOCIMIENTO
C13: REQUISITOS DE EXPERIENCIA
C14: EQUIVALENCIA
B15: NORMATIVIDAD | H15: Ley 909 de 2004, Decreto 1082 de 2015, Decreto 648 de 2017, Circular 20191000000117 del 29/07/2019, Ley 1960/2019 y Criterio unificado CNSC
B16: POSTULACIÓN SERVIDOR PÚBLICO CON DERECHOS DE CARRERA | D16: a) 20 | H16: b) 15 | K16: c) 10 | O16: d) 5 | S16: e) 20 | W16: f) 5 | Z16: g) 20 | AD16: h) 5
B17: NOMBRE Y APELLIDOS | C17: CARGO DE CARRERA | D17: Mayor experiencia relacionada, de acuerdo al Manual de Funciones. | F17: Peso porcentual | H17: Mayor puntaje obtenido en la EDL | I17: Peso porcentual | K17: Pertenecer a la misma dependencia en la que se encuentra el empleo objeto de provisión | M17: Peso porcentual | O17: Distinciones, reconocimientos u honores en el ejercicio de sus funciones durante los últimos cuatro (4) años | Q17: Peso porcentual | S17: Acreditación de educación formal relacionada y adicional al requisito mínimo exigido para el cargo, la cual deberá estar vigente en su historia laboral (Se asignará puntaje por cada título obtenido en el nivel académico) | U17: Peso porcentual | W17: Acreditación de su condición de victima, en términos el articulo 131 de la Ley 1448 de 2011. | Z17: Servidor con derechos de carrera más antiguo de la Entidad | AB17: Peso porcentual | AD17: Acreditación por haber sufragado en las elecciones inmediatamente anteriores, (Art. 5 de la ley 403/97 | AG17: RESULTADO FINAL (Sumatoria del resultado de cada uno de los criterios de desempate)
D18: Tiempo (meses) | E18: Puntaje | F18: 20 | H18: 100 | I18: =15*H18/100 -> 15 | K18: Tiempo (meses) | L18: Puntaje | M18: 10 | O18: No. de reconicmientos | P18: Puntaje | Q18: 5 | S18: No. de títulos adicionales | T18: Puntaje | U18: 20 | W18: Acreditación | X18: Puntaje | Z18: Tiempo de servicios en meses | AA18: Puntaje | AB18: 20 | AD18: Acreditación | AE18: Puntaje
D19: De uno (1) a dieciocho (18) meses | E19: 10 | F19: =E19*F18/100 -> 2 | K19: De uno (1) a veinticuatro (24) meses | L19: 14 | M19: =L19*M18/100 -> 1.4 | O19: De uno (1) a (2) | P19: 10 | Q19: =P19*Q18/100 -> 0.5 | S19: Bachiller | T19: 4 | U19: =T19*U18/100 -> 0.8 | W19: SI | X19: 5 | Z19: De uno (1) a veinticuatro (24) meses | AA19: 14.3 | AB19: =AA19*AB18/100 -> 2.86 | AD19: SI | AE19: 5
S20: Técnico | T20: 8 | U20: =T20*U18/100 -> 1.6
D21: De diecinueve (19) a treinta y seis (36) meses | E21: 20 | F21: =E21*F18/100 -> 4 | K21: De veinticinco (25) a treinta y seis (36) meses | L21: 21 | M21: =L21*M18/100 -> 2.1 | O21: De tres (3) a cuatro (4) | P21: 20 | Q21: =P21*Q18/100 -> 1 | S21: Tecnólogo o Especialización Técnica | T21: 13 | U21: =T21*U18/100 -> 2.6 | Z21: De veinticinco (25) a treinta y seis (36) meses | AA21: 21.4 | AB21: =AA21*AB18/100 -> 4.28
S22: Profesional o Especialización Tecnológica | T22: 15 | U22: =T22*U18/100 -> 3 | W22: NO | X22: 0
D23: De treinta y siete (37) a cincuenta y cuatro (54) meses | E23: 30 | F23: =E23*F18/100 -> 6 | K23: De treinta y siete (37) a cuarenta y ocho (48) meses | L23: 29 | M23: =L23*M18/100 -> 2.9 | O23: De cinco (5) cinco a seis (6) | P23: 30 | Q23: =P23*Q18/100 -> 1.5 | S23: Especialización | T23: 17 | U23: =T23*U18/100 -> 3.4 | Z23: De treinta y siete (37) a cuarenta y ocho (48) meses | AA23: 28.6 | AB23: =AA23*AB18/100 -> 5.72 | AD23: NO | AE23: 0
S24: Maestría | T24: 21 | U24: =T24*U18/100 -> 4.2
D25: De cincuenta y cinco (55) meses, en adelante | E25: 40 | F25: =E25*F18/100 -> 8 | K25: De cuarenta y nueve (49) meses en adelante | L25: 36 | M25: =L25*M18/100 -> 3.6 | O25: De siete (7) en adelante | P25: 40 | Q25: =P25*Q18/100 -> 2 | S25: Doctorado | T25: 22 | U25: =T25*U18/100 -> 4.4 | Z25: De cuarenta y nueve (49) meses en adelante | AA25: 35.7 | AB25: =AA25*AB18/100 -> 7.14
E26: =SUM(E19:E25) -> 100 | F26: =SUM(F19:F25) -> 20 | H26: 100 | I26: =+I18 -> 15 | L26: =SUM(L19:L25) -> 100 | M26: =SUM(M19:M25) -> 10 | P26: =SUM(P19:P25) -> 100 | Q26: =SUM(Q19:Q25) -> 5 | S26: =SUM(T19:T25) -> 100 | U26: =SUM(U19:U25) -> 20 | AA26: =SUM(AA19:AA25) -> 100 | AB26: =SUM(AB19:AB25) -> 20
F27: 4
B28: Ejercicio | D28: Veinte meses de experiencia | F28: 4 | H28: 98 | I28: =(I26*H28)/100 -> 14.7 | K28: 24 meses | M28: 1.4 | O28: Dos reconocimientos | Q28: 1 | S28: Especialista en Derecho Laboral | U28: 3.4 | W28: No registra | X28: 0 | Z28: Cincuenta meses de antigüedad en la entidad | AB28: 7 | AD28: Si registra | AE28: 5 | AG28: =(F28+I28+M28+Q28+U28+X28+AB28+AE28) -> 36.5
B30: RESULTADO DEL PRESENTE ESTUDIO:
B31: Efectuada la evaluación de presupuestos, se ha identificado que varios servidores de carrera administrativa cumplen con Ia totalidad de los requisitos exigidos en el artículo 1 de la Ley 1960/19, que modifica el artículo 24 de la Ley 909 de 2004, situación por la cual, la Entidad Municipio de Fusagasugá, bajo parámetros objetivos y fundamentado en el mérito, evalúa los criterios de desempate y define sobre que funcionario recae el encargo por haber obtenido la más alta calificación.
B32: Si con los resultados del presente estudio persiste el empate de funcionarios calificados para obtener el encargo del empleo en estudio, la asignación del mismo, se decidirá a la suerte por medio de balotas, en presencia de pluralidad de servidores de la Entidad, entre ellos Control Interno.
B33: ALCALDE | E33: SECRETARIA ADMINISTRATIVA | M33: DIRECTOR DE GESTIÓN HUMANA | T33: PROFESIONAL ESPECIALIZADO | AA33: PROFESIONAL UNIVERSITARIO
